fUST/lending_fUST_20250715
["ID","MTS","AMOUNT","RATE_DAILY","PERIOD"]
[372271610,1752570646898,-740.23,0.00019452,2]
[372271612,1752570646907,-384.26950801,0.00019452,2]
[372271614,1752570646916,-460.0,0.00019452,2]
[372271616,1752570646926,-460.0,0.00019452,2]
[372271618,1752570646936,-460.0,0.00019452,2]
[372271621,1752570646946,-460.0,0.00019452,2]
[372271623,1752570646955,-6066.63,0.00019452,2]
[372271624,1752570646964,-5988.09,0.00019452,2]
[372271627,1752570646979,-460.0,0.00019452,2]
[372271629,1752570646989,-460.0,0.00019452,2]
[372271631,1752570646998,-460.0,0.00019452,2]
[372271633,1752570647008,-462.8780156,0.00019452,2]
[372271635,1752570647018,-296.14996238,0.00019452,2]
[372271637,1752570647027,-460.0,0.00019452,2]
[372271639,1752570647036,-460.0,0.00019452,2]
[372271641,1752570647047,-5429.84,0.00019452,2]
[372271643,1752570647056,-460.0,0.00019452,2]
[372271645,1752570647065,-460.0,0.00019452,2]
[372271647,1752570647075,-709.59,0.00019452,2]
[372271649,1752570647086,-460.0,0.00019452,2]
[372271651,1752570647095,-1557.24,0.00019452,2]
[372271653,1752570647104,-736.32,0.00019452,2]
[372271655,1752570647114,-1895.77,0.00019452,2]
[372271657,1752570647123,-460.0,0.00019452,2]
[372271658,1752570647132,-656.87,0.00019452,2]
[372271661,1752570647142,-460.0,0.00019452,2]
[372271663,1752570647151,-4034.47,0.00019452,2]
[372271665,1752570647161,-460.0,0.00019452,2]
[372271667,1752570647170,-460.0,0.00019452,2]
[372271669,1752570647180,-460.0,0.00019452,2]
[372271671,1752570647189,-460.0,0.00019452,2]
[372271672,1752570647198,-460.0,0.00019452,2]
[372271674,1752570647207,-460.0,0.00019452,2]
[372271676,1752570647216,-460.0,0.00019452,2]
[372271678,1752570647225,-460.0,0.00019452,2]
[372271680,1752570647234,-813.36,0.00019452,2]
[372271682,1752570647244,-460.0,0.00019452,2]
[372271685,1752570647253,-460.0,0.00019452,2]
[372271687,1752570647262,-460.0,0.00019452,2]
[372271689,1752570647271,-684.57,0.00019452,2]
[372271691,1752570647281,-460.0,0.00019452,2]
[372271692,1752570647290,-460.0,0.00019452,2]
[372271694,1752570647299,-460.0,0.00019452,2]
[372271696,1752570647308,-460.0,0.00019452,2]
[372271698,1752570647318,-460.0,0.00019452,2]
[372271700,1752570647327,-460.0,0.00019452,2]
[372271702,1752570647337,-460.0,0.00019452,2]
[372271704,1752570647346,-460.0,0.00019452,2]
[372271706,1752570647355,-287.29681853,0.00019452,2]
[372271708,1752570647365,-6650.37,0.00019452,2]
[372271710,1752570647374,-460.0,0.00019452,2]
[372271712,1752570647383,-460.0,0.00019452,2]
[372271714,1752570647392,-460.0,0.00019452,2]
[372271716,1752570647402,-460.0,0.00019452,2]
[372271718,1752570647411,-486.7,0.00019452,2]
[372271720,1752570647421,-3397.01,0.00019452,2]
[372271722,1752570647430,-465.23061377,0.00019452,2]
[372271724,1752570647440,-460.0,0.00019452,2]
[372271726,1752570647450,-914.28,0.00019452,2]
[372271728,1752570647459,-460.0,0.00019452,2]
[372271730,1752570647470,-460.0,0.00019452,2]
[372271732,1752570647481,-460.0,0.00019452,2]
[372271734,1752570647491,-460.0,0.00019452,2]
[372271736,1752570647500,-541.55,0.00019452,2]
[372271738,1752570647510,-460.0,0.00019452,2]
[372271741,1752570647521,-593.68,0.00019452,2]
[372271742,1752570647532,-701.5,0.00019452,2]
[372271745,1752570647541,-489.87,0.00019452,2]
[372271746,1752570647551,-460.0,0.00019452,2]
[372271748,1752570647560,-1182.25,0.00019452,2]
[372271751,1752570647570,-460.0,0.00019452,2]
[372271753,1752570647579,-460.0,0.00019452,2]
[372271754,1752570647589,-460.0,0.00019452,2]
[372271757,1752570647599,-1976.96,0.00019452,2]
[372271759,1752570647609,-460.0,0.00019452,2]
[372271761,1752570647619,-2295.41,0.00019452,2]
[372271763,1752570647628,-460.0,0.00019452,2]
[372271765,1752570647638,-522.88,0.00019452,2]
[372271767,1752570647648,-460.0,0.00019452,2]
[372271769,1752570647658,-561.74386622,0.00019452,2]
[372271771,1752570647667,-665.64,0.00019452,2]
[372271773,1752570647677,-460.0,0.00019452,2]
[372271775,1752570647687,-460.0,0.00019452,2]
[372271777,1752570647696,-460.0,0.00019452,2]
[372271779,1752570647706,-460.0,0.00019452,2]
[372271781,1752570647715,-460.0,0.00019452,2]
[372271783,1752570647725,-1499.53,0.00019452,2]
[372271785,1752570647734,-460.0,0.00019452,2]
[372271787,1752570647745,-460.0,0.00019452,2]
[372271789,1752570647754,-460.0,0.00019452,2]
[372271790,1752570647763,-460.0,0.00019452,2]
[372271793,1752570647773,-460.0,0.00019452,2]
[372271795,1752570647782,-460.0,0.00019452,2]
[372271797,1752570647792,-819.29,0.00019452,2]
[372271798,1752570647801,-460.0,0.00019452,2]
[372271800,1752570647810,-257.690652,0.00019452,2]
[372271803,1752570647820,-176.04,0.00019452,2]
[372271804,1752570647829,-460.0,0.00019452,2]
[372271806,1752570647839,-460.0,0.00019452,2]
[372271808,1752570647849,-460.0,0.00019452,2]
[372271811,1752570647858,-500.0,0.00019452,2]
[372271813,1752570647868,-500.0,0.00019473,2]
[372271814,1752570647877,-628.7217938,0.00019473,2]
[372271817,1752570647887,-500.0,0.00019473,2]
[372271818,1752570647896,-500.0,0.00019473,2]
[372271821,1752570647906,-500.0,0.00019473,2]
[372271822,1752570647916,-506.39072393,0.00019473,2]
[372271824,1752570647925,-500.0,0.00019473,2]
[372271826,1752570647936,-500.0,0.00019473,2]
[372271830,1752570647956,-422.67044648,0.00019623,2]
[372271832,1752570647967,-1005.94266546,0.00019721,2]
[372271834,1752570647981,-260.58499633,0.00019721,2]
[372271836,1752570647991,-1000.0,0.00019721,2]
[372271838,1752570648006,-1005.05020048,0.00019721,2]
[372271840,1752570648017,-1000.0,0.00019721,2]
[372271842,1752570648028,-1000.0,0.00019721,2]
[372271844,1752570648037,-1000.0,0.00019721,2]
[372271846,1752570648047,-460.0,0.00019726,2]
[372271848,1752570648058,-460.0,0.00019726,2]
[372271850,1752570648068,-460.0,0.00019726,2]
[372271852,1752570648078,-565.50399277,0.00019726,2]
[372271854,1752570648087,-330.43429016,0.00019726,2]
[372271856,1752570648097,-460.0,0.00019726,2]
[372271858,1752570648106,-156.83496223,0.00019726,2]
[372271860,1752570648116,-460.0,0.00019726,2]
[372271863,1752570648126,-460.0,0.00019726,2]
[372271865,1752570648136,-460.0,0.00019726,2]
[372271867,1752570648146,-518.56,0.00019726,2]
[372271869,1752570648156,-360.87122314,0.00019726,2]
[372271871,1752570648166,-460.0,0.00019726,2]
[372271873,1752570648176,-460.0,0.00019726,2]
[372271875,1752570648187,-460.0,0.00019726,2]
[372271877,1752570648197,-929.48,0.00019726,2]
[372271879,1752570648206,-460.0,0.00019726,2]
[372271881,1752570648216,-460.0,0.00019726,2]
[372271883,1752570648226,-460.0,0.00019726,2]
[372271885,1752570648236,-460.0,0.00019726,2]
[372271887,1752570648245,-460.0,0.00019726,2]
[372271889,1752570648256,-460.0,0.00019726,2]
[372271891,1752570648265,-460.0,0.00019726,2]
[372271893,1752570648274,-460.0,0.00019726,2]
[372271895,1752570648284,-460.0,0.00019726,2]
[372271897,1752570648294,-460.0,0.00019726,2]
[372271899,1752570648304,-460.0,0.00019726,2]
[372271901,1752570648315,-541.79,0.00019726,2]
[372271903,1752570648325,-460.0,0.00019726,2]
[372271905,1752570648335,-460.0,0.00019726,2]
[372271908,1752570648345,-460.0,0.00019726,2]
[372271910,1752570648354,-460.0,0.00019726,2]
[372271912,1752570648364,-460.0,0.00019726,2]
[372271914,1752570648374,-460.0,0.00019726,2]
[372271916,1752570648384,-460.0,0.00019726,2]
[372271918,1752570648394,-460.0,0.00019726,2]
[372271920,1752570648404,-460.0,0.00019726,2]
[372271922,1752570648414,-460.0,0.00019726,2]
[372271924,1752570648425,-524.06,0.00019726,2]
[372271926,1752570648435,-460.0,0.00019726,2]
[372271928,1752570648445,-460.0,0.00019726,2]
[372271930,1752570648455,-734.04,0.00019726,2]
[372271932,1752570648466,-460.0,0.00019726,2]
[372271934,1752570648476,-542.32,0.00019726,2]
[372271936,1752570648486,-460.0,0.00019726,2]
[372271938,1752570648495,-460.0,0.00019726,2]
[372271940,1752570648505,-460.0,0.00019726,2]
[372271942,1752570648514,-277.66712429,0.00019726,2]
[372271945,1752570648524,-460.0,0.00019726,2]
[372271947,1752570648535,-460.0,0.00019726,2]
[372271949,1752570648545,-460.0,0.00019726,2]
[372271951,1752570648554,-606.13520591,0.00019726,2]
[372271953,1752570648563,-460.0,0.00019726,2]
[372271955,1752570648572,-460.0,0.00019726,2]
[372271957,1752570648582,-460.0,0.00019726,2]
[372271959,1752570648591,-804.19,0.00019726,2]
[372271961,1752570648600,-898.07,0.00019726,2]
[372271963,1752570648610,-460.0,0.00019726,2]
[372271965,1752570648620,-460.0,0.00019726,2]
[372271967,1752570648629,-460.0,0.00019726,2]
[372271969,1752570648639,-460.0,0.00019726,2]
[372271971,1752570648650,-460.0,0.00019726,2]
[372271973,1752570648660,-460.0,0.00019726,2]
[372271975,1752570648671,-460.0,0.00019726,2]
[372271977,1752570648682,-460.0,0.00019726,2]
[372271979,1752570648692,-460.0,0.00019726,2]
[372271981,1752570648703,-460.0,0.00019726,2]
[372271983,1752570648713,-460.0,0.00019726,2]
[372271985,1752570648723,-460.0,0.00019726,2]
[372271987,1752570648733,-460.0,0.00019726,2]
[372271989,1752570648743,-326.42748335,0.00019726,2]
[372271991,1752570648754,-460.0,0.00019726,2]
[372271993,1752570648765,-460.0,0.00019726,2]
[372271995,1752570648776,-460.0,0.00019726,2]
[372271997,1752570648786,-460.0,0.00019726,2]
[372271999,1752570648796,-245.85886653,0.00019726,2]
[372272001,1752570648806,-898.31,0.00019726,2]
[372272003,1752570648816,-460.0,0.00019726,2]
[372272005,1752570648828,-460.0,0.00019726,2]
[372272007,1752570648839,-471.80018725,0.00019726,2]
[372272009,1752570648851,-460.0,0.00019726,2]
[372272011,1752570648862,-460.0,0.00019726,2]
[372272013,1752570648874,-460.0,0.00019726,2]
[372272015,1752570648885,-891.43,0.00019726,2]
[372272017,1752570648897,-460.0,0.00019726,2]
[372272019,1752570648907,-460.0,0.00019726,2]
[372272021,1752570648918,-460.0,0.00019726,2]
[372272023,1752570648929,-460.0,0.00019726,2]
[372272025,1752570648939,-460.0,0.00019726,2]
[372272027,1752570648950,-460.0,0.00019726,2]
[372272029,1752570648959,-460.0,0.00019726,2]
[372272031,1752570648969,-460.0,0.00019726,2]
[372272033,1752570648982,-558.21525741,0.00019726,2]
[372272035,1752570648991,-460.0,0.00019726,2]
[372272037,1752570649000,-460.0,0.00019726,2]
[372272038,1752570649009,-470.67,0.00019726,2]
[372272040,1752570649020,-471.48,0.00019726,2]
[372272043,1752570649031,-460.0,0.00019726,2]
[372272044,1752570649041,-460.0,0.00019726,2]
[372272046,1752570649053,-460.0,0.00019726,2]
[372272048,1752570649063,-460.0,0.00019726,2]
[372272051,1752570649073,-460.0,0.00019726,2]
[372272052,1752570649083,-460.0,0.00019726,2]
[372272055,1752570649094,-460.0,0.00019726,2]
[372272057,1752570649103,-460.0,0.00019726,2]
[372272058,1752570649114,-359.11428752,0.00019726,2]
[372272060,1752570649124,-460.0,0.00019726,2]
[372272062,1752570649133,-460.0,0.00019726,2]
[372272064,1752570649143,-460.0,0.00019726,2]
[372272066,1752570649153,-460.0,0.00019726,2]
[372272068,1752570649163,-460.0,0.00019726,2]
[372272070,1752570649173,-460.0,0.00019726,2]
[372272072,1752570649184,-527.36239569,0.00019726,2]
[372272074,1752570649194,-460.0,0.00019726,2]
[372272076,1752570649205,-1355.61,0.00019726,2]
[372272078,1752570649214,-460.0,0.00019726,2]
[372272080,1752570649225,-460.0,0.00019726,2]
[372272082,1752570649235,-460.0,0.00019726,2]
[372272084,1752570649246,-460.0,0.00019726,2]
[372272086,1752570649256,-460.0,0.00019726,2]
[372272088,1752570649266,-460.0,0.00019726,2]
[372272090,1752570649276,-460.0,0.00019726,2]
[372272092,1752570649286,-460.0,0.00019726,2]
[372272094,1752570649295,-403.60953974,0.00019726,2]
[372272096,1752570649306,-669.96,0.00019726,2]
[372272098,1752570649316,-1420.46,0.00019726,2]
[372272100,1752570649325,-460.0,0.00019726,2]
[372272102,1752570649336,-460.0,0.00019726,2]
[372272104,1752570649346,-460.0,0.00019726,2]
[372272106,1752570649355,-460.0,0.00019726,2]
[372272108,1752570649365,-460.0,0.00019726,2]
[372272110,1752570649375,-460.0,0.00019726,2]
[372272112,1752570649385,-521.25,0.00019726,2]
[372272114,1752570649395,-460.0,0.00019726,2]
[372272116,1752570649405,-460.0,0.00019726,2]
[372272135,1752570649587,-460.0,0.00019726,2]
[372272137,1752570649597,-730.02,0.00019726,2]
[372272139,1752570649606,-460.0,0.00019726,2]
[372272141,1752570649616,-2209.63,0.00019726,2]
[372272143,1752570649626,-862.35,0.00019726,2]
[372272145,1752570649635,-460.0,0.00019726,2]
[372272147,1752570649645,-460.0,0.00019726,2]
[372272149,1752570649655,-460.0,0.00019726,2]
[372272151,1752570649665,-534.43791148,0.00019726,2]
[372272153,1752570649675,-460.0,0.00019726,2]
[372272155,1752570649686,-524.72,0.00019726,2]
[372272157,1752570649696,-460.0,0.00019726,2]
[372272159,1752570649707,-460.0,0.00019726,2]
[372272161,1752570649717,-460.0,0.00019726,2]
[372272163,1752570649727,-460.0,0.00019726,2]
[372272165,1752570649737,-1374.95,0.00019726,2]
[372272167,1752570649747,-1370.99,0.00019726,2]
[372272169,1752570649757,-460.0,0.00019726,2]
[372272171,1752570649767,-460.0,0.00019726,2]
[372272173,1752570649776,-740.23,0.00019726,2]
[372272175,1752570649786,-460.0,0.00019726,2]
[372272177,1752570649796,-460.0,0.00019726,2]
[372272179,1752570649806,-460.0,0.00019726,2]
[372272181,1752570649815,-6066.63,0.00019726,2]
[372272183,1752570649825,-5988.09,0.00019726,2]
[372272185,1752570649834,-460.0,0.00019726,2]
[372272187,1752570649844,-460.0,0.00019726,2]
[372272189,1752570649854,-460.0,0.00019726,2]
[372272191,1752570649864,-5429.84,0.00019726,2]
[372272193,1752570649873,-460.0,0.00019726,2]
[372272195,1752570649883,-460.0,0.00019726,2]
[372272197,1752570649892,-709.59,0.00019726,2]
[372272199,1752570649901,-460.0,0.00019726,2]
[372272201,1752570649911,-1557.24,0.00019726,2]
[372272203,1752570649920,-736.32,0.00019726,2]
[372272204,1752570649929,-1895.77,0.00019726,2]
[372272206,1752570649939,-460.0,0.00019726,2]
[372272208,1752570649948,-656.87,0.00019726,2]
[372272210,1752570649958,-460.0,0.00019726,2]
[372272212,1752570649970,-4034.47,0.00019726,2]
[372272214,1752570649982,-460.0,0.00019726,2]
[372272216,1752570649993,-460.0,0.00019726,2]
[372272218,1752570650003,-460.0,0.00019726,2]
[372272220,1752570650012,-460.0,0.00019726,2]
[372272222,1752570650023,-460.0,0.00019726,2]
[372272224,1752570650033,-460.0,0.00019726,2]
[372272226,1752570650043,-460.0,0.00019726,2]
[372272228,1752570650054,-813.36,0.00019726,2]
[372272230,1752570650063,-460.0,0.00019726,2]
[372272232,1752570650073,-460.0,0.00019726,2]
[372272233,1752570650083,-460.0,0.00019726,2]
[372272234,1752570650092,-684.57,0.00019726,2]
[372272235,1752570650102,-460.0,0.00019726,2]
[372272236,1752570650113,-460.0,0.00019726,2]
[372272237,1752570650123,-460.0,0.00019726,2]
[372272238,1752570650132,-460.0,0.00019726,2]
[372272240,1752570650143,-460.0,0.00019726,2]
[372272242,1752570650152,-460.0,0.00019726,2]
[372272244,1752570650161,-460.0,0.00019726,2]
[372272246,1752570650170,-478.37757652,0.00019726,2]
[372272248,1752570650180,-6650.37,0.00019726,2]
[372272250,1752570650190,-460.0,0.00019726,2]
[372272252,1752570650199,-460.0,0.00019726,2]
[372272254,1752570650208,-460.0,0.00019726,2]
[372272255,1752570650218,-460.0,0.00019726,2]
[372272257,1752570650227,-486.7,0.00019726,2]
[372272259,1752570650237,-3397.01,0.00019726,2]
[372272261,1752570650248,-460.0,0.00019726,2]
[372272263,1752570650257,-914.28,0.00019726,2]
[372272265,1752570650267,-316.41758735,0.00019726,2]
[372272266,1752570650276,-460.0,0.00019726,2]
[372272268,1752570650285,-460.0,0.00019726,2]
[372272270,1752570650294,-460.0,0.00019726,2]
[372272272,1752570650304,-541.55,0.00019726,2]
[372272274,1752570650313,-593.68,0.00019726,2]
[372272276,1752570650324,-701.5,0.00019726,2]
[372272278,1752570650333,-460.0,0.00019726,2]
[372272279,1752570650342,-489.87,0.00019726,2]
[372272281,1752570650351,-460.0,0.00019726,2]
[372272283,1752570650361,-1182.25,0.00019726,2]
[372272285,1752570650371,-460.0,0.00019726,2]
[372272287,1752570650380,-460.0,0.00019726,2]
[372272289,1752570650389,-1976.96,0.00019726,2]
[372272291,1752570650399,-460.0,0.00019726,2]
[372272292,1752570650408,-2295.41,0.00019726,2]
[372272294,1752570650418,-460.0,0.00019726,2]
[372272296,1752570650427,-522.88,0.00019726,2]
[372272298,1752570650437,-460.0,0.00019726,2]
[372272300,1752570650447,-665.64,0.00019726,2]
[372272301,1752570650456,-460.0,0.00019726,2]
[372272303,1752570650466,-460.0,0.00019726,2]
[372272305,1752570650475,-460.0,0.00019726,2]
[372272307,1752570650485,-1499.53,0.00019726,2]
[372272309,1752570650494,-460.0,0.00019726,2]
[372272311,1752570650503,-460.0,0.00019726,2]
[372272313,1752570650513,-460.0,0.00019726,2]
[372272314,1752570650522,-460.0,0.00019726,2]
[372272316,1752570650532,-460.0,0.00019726,2]
[372272318,1752570650541,-819.29,0.00019726,2]
[372272320,1752570650550,-460.0,0.00019726,2]
[372272322,1752570650560,-460.0,0.00019726,2]
[372272324,1752570650570,-460.0,0.00019726,2]
[372272325,1752570650579,-460.0,0.00019726,2]
[372272326,1752570650588,-500.0,0.00019726,2]
[372272327,1752570650598,-502.44996152,0.00019773,2]
[372272328,1752570650608,-500.0,0.00019773,2]
[372272329,1752570650618,-604.31728,0.00019773,2]
[372272330,1752570650627,-500.0,0.00019773,2]
[372272331,1752570650637,-500.0,0.00019773,2]
[372272332,1752570650647,-500.0,0.00019773,2]
[372272333,1752570650656,-934.41204073,0.00019868,2]
[372272334,1752570650666,-503.52662773,0.00019868,2]
[372272335,1752570650676,-1500.0,0.00019868,2]
[372272336,1752570650686,-1500.0,0.00019868,2]
[372272337,1752570650696,-1500.0,0.00019868,2]
[372272338,1752570650705,-151.0,0.0001989,2]
[372272339,1752570650716,-152.50305716,0.0001989,2]
[372272340,1752570650726,-151.0,0.0001989,2]
[372272341,1752570650737,-151.0,0.0001989,2]
[372272342,1752570650747,-151.0,0.0001989,2]
[372272343,1752570650756,-151.0,0.0001989,2]
[372272344,1752570650767,-500.0,0.0001989,2]
[372272345,1752570650777,-151.0,0.0001989,2]
[372272346,1752570650787,-151.0,0.0001989,2]
[372272347,1752570650798,-151.0,0.0001989,2]
[372272348,1752570650808,-418.0,0.0001989,2]
[372272349,1752570650817,-151.0,0.0001989,2]
[372272350,1752570650827,-500.0,0.0001989,2]
[372272351,1752570650837,-151.0,0.0001989,2]
[372272352,1752570650846,-151.0,0.0001989,2]
[372272353,1752570650855,-151.0,0.0001989,2]
[372272354,1752570650865,-151.0,0.0001989,2]
[372272355,1752570650874,-151.0,0.0001989,2]
[372272356,1752570650884,-151.0,0.0001989,2]
[372272357,1752570650894,-158.1622815,0.0001989,2]
[372272358,1752570650903,-151.15357884,0.0001989,2]
[372272359,1752570650913,-151.0,0.0001989,2]
[372272360,1752570650923,-151.0,0.0001989,2]
[372272361,1752570650932,-151.0,0.0001989,2]
[372272362,1752570650942,-288.12379564,0.0001989,2]
[372272363,1752570650951,-151.10618847,0.0001989,2]
[372272364,1752570650960,-151.0,0.0001989,2]
[372272365,1752570650971,-151.0,0.0001989,2]
[372272366,1752570650983,-151.0,0.0001989,2]
[372272367,1752570650993,-500.0,0.0001989,2]
[372272368,1752570651003,-500.0,0.0001989,2]
[372272369,1752570651015,-151.0,0.0001989,2]
[372272370,1752570651029,-422.67044648,0.00019898,2]
[372272371,1752570651039,-10591.7251545,0.000199,2]
[372272372,1752570651048,-160.0,0.00019908,2]
[372272373,1752570651063,-151.0,0.00019917,2]
[372272374,1752570651080,-151.0,0.00019917,2]
[372272375,1752570651091,-151.0,0.00019917,2]
[372272376,1752570651100,-500.0,0.00019917,2]
[372272377,1752570651110,-151.0,0.00019917,2]
[372272378,1752570651119,-418.0,0.00019917,2]
[372272379,1752570651129,-151.0,0.00019917,2]
[372272380,1752570651138,-500.0,0.00019917,2]
[372272381,1752570651148,-151.0,0.00019917,2]
[372272382,1752570651158,-151.0,0.00019917,2]
[372272383,1752570651175,-151.0,0.00019917,2]
[372272384,1752570651189,-500.0,0.00019917,2]
[372272385,1752570651198,-500.0,0.00019917,2]
[372272386,1752570651207,-151.0,0.00019917,2]
[372272387,1752570651217,-151.0,0.00019945,2]
[372272388,1752570651227,-151.0,0.00019945,2]
[372272389,1752570651236,-500.0,0.00019945,2]
[372272390,1752570651246,-151.0,0.00019945,2]
[372272391,1752570651256,-418.0,0.00019945,2]
[372272392,1752570651266,-151.0,0.00019945,2]
[372272393,1752570651275,-500.0,0.00019945,2]
[372272394,1752570651285,-151.0,0.00019945,2]
[372272395,1752570651294,-151.0,0.00019945,2]
[372272396,1752570651303,-210.42481086,0.00019945,2]
[372272397,1752570651313,-168.98177811,0.00019945,2]
[372272398,1752570651322,-500.0,0.00019945,2]
[372272399,1752570651331,-198.0,0.00019945,2]
[372272400,1752570651341,-151.0,0.00019972,2]
[372272401,1752570651350,-166.07614713,0.00019972,2]
[372272402,1752570651359,-201.45105498,0.00019972,2]
[372272403,1752570651369,-418.0,0.00019972,2]
[372272404,1752570651378,-151.0,0.00019972,2]
[372272405,1752570651388,-151.0,0.00019972,2]
[372272406,1752570651397,-151.0,0.00019972,2]
[372272407,1752570651407,-151.0,0.00019972,2]
[372272408,1752570651417,-500.0,0.00019972,2]
[372272409,1752570651426,-263.53132975,0.0002,2]
[372272410,1752570651438,-418.0,0.0002,2]
[372272411,1752570651448,-151.0,0.0002,2]
[372272412,1752570651457,-151.0,0.0002,2]
[372272414,1752570651468,-200.17705806,0.0002,2]
[372272416,1752570651481,-500.0,0.0002,2]
[372272417,1752570651491,-460.0,0.0002,2]
[372272419,1752570651501,-460.0,0.0002,2]
[372272421,1752570651511,-153.10962694,0.0002,2]
[372272423,1752570651521,-460.0,0.0002,2]
[372272425,1752570651530,-460.0,0.0002,2]
[372272427,1752570651540,-460.0,0.0002,2]
[372272429,1752570651550,-460.0,0.0002,2]
[372272431,1752570651559,-518.56,0.0002,2]
[372272432,1752570651568,-460.0,0.0002,2]
[372272434,1752570651578,-460.0,0.0002,2]
[372272436,1752570651587,-460.0,0.0002,2]
[372272438,1752570651596,-929.48,0.0002,2]
[372272440,1752570651605,-460.0,0.0002,2]
[372272441,1752570651614,-460.0,0.0002,2]
[372272443,1752570651624,-460.0,0.0002,2]
[372272445,1752570651633,-460.0,0.0002,2]
[372272447,1752570651643,-460.0,0.0002,2]
[372272449,1752570651652,-460.0,0.0002,2]
[372272451,1752570651662,-460.0,0.0002,2]
[372272453,1752570651671,-460.0,0.0002,2]
[372272454,1752570651681,-460.0,0.0002,2]
[372272456,1752570651690,-460.0,0.0002,2]
[372272458,1752570651700,-541.79,0.0002,2]
[372272460,1752570651709,-460.0,0.0002,2]
[372272462,1752570651719,-460.0,0.0002,2]
[372272464,1752570651728,-461.16747139,0.0002,2]
[372272466,1752570651737,-460.0,0.0002,2]
[372272467,1752570651746,-460.0,0.0002,2]
[372272469,1752570651756,-460.0,0.0002,2]
[372272471,1752570651766,-460.0,0.0002,2]
[372272473,1752570651776,-606.51054467,0.0002,2]
[372272475,1752570651785,-460.0,0.0002,2]
[372272477,1752570651795,-460.0,0.0002,2]
[372272479,1752570651805,-524.06,0.0002,2]
[372272481,1752570651814,-460.0,0.0002,2]
[372272482,1752570651824,-460.0,0.0002,2]
[372272484,1752570651834,-734.04,0.0002,2]
[372272486,1752570651843,-460.0,0.0002,2]
[372272488,1752570651853,-542.32,0.0002,2]
[372272490,1752570651863,-460.0,0.0002,2]
[372272492,1752570651872,-460.0,0.0002,2]
[372272493,1752570651881,-460.0,0.0002,2]
[372272495,1752570651891,-460.0,0.0002,2]
[372272497,1752570651900,-217.28544719,0.0002,2]
[372272499,1752570651909,-238.51968945,0.0002,2]
[372272501,1752570651919,-898.07,0.0002,2]
[372272503,1752570651929,-804.19,0.0002,2]
[372272504,1752570651940,-460.0,0.0002,2]
[372272506,1752570651949,-151.33233934,0.0002,2]
[372272508,1752570651959,-460.0,0.0002,2]
[372272510,1752570651969,-460.0,0.0002,2]
[372272512,1752570651983,-460.0,0.0002,2]
[372272514,1752570651992,-460.0,0.0002,2]
[372272516,1752570652003,-412.05559276,0.0002,2]
[372272518,1752570652012,-460.0,0.0002,2]
[372272520,1752570652023,-460.0,0.0002,2]